Cogmind - Beta 16 @@@ ROGUE MODE // 2025.12.05 @ 23:23:52 Player: AngelSpirit Result: Destroyed by B-90 Cyclops with Nova Cannon Performance ------------- Evolutions (8) 4000 Regions Visited (19) 3800 Robots Destroyed (228) 1140 Value Destroyed (10839) 10839 Prototype IDs (71) 1420 Alien Tech Used (2) 400 Bonus (6410) 6410 TOTAL SCORE: 28009 Bonus ------- High Alert Combat Kills 337 Follower Combat Kills 1883 Registered with UFD 300 Met Optimus in HQ 500 Met Zhirov 300 Built Enhanced Grunts 300 A7 Reached Mainframe 300 Met R17 at Cetus 500 Met R17 at Research 2000 Friendly Fire -10 Cogmind --------- Core Integrity 0/1450 Matter 295/300 Energy 100/100 System Corruption 29% Temperature Cool (9) Movement Core (50) Location -2/Research Parts ------- > --- POWER (2) -------- (None) > --- PROPULSION (6) --- (None) > --- UTILITY (11) ----- Experimental Coolant Injector Advanced Signal Interpreter Improved Hacking Suite > --- WEAPON (4) ------- (None) > --- INVENTORY (5) ---- Improved Arc Projector Improved Remote Datajack Improved Plasma Cutter Peak State ------------ > --- POWER ------------ Micro Antimatter Reactor Reinforced Quantum Reactor > --- PROPULSION ------- Flexi-carbon Leg Flexi-carbon Leg Myomer Leg Myomer Leg Biometal Leg Experimental Myomer Leg > --- UTILITY ---------- Advanced Cryofiber Web Advanced Heat Sink Advanced Heat Sink Large Storage Unit Advanced Signal Interpreter Particle Accelerator Experimental Reaction Control System Centrium Light Armor Plating Experimental Focal Shield Improved Hacking Suite Advanced System Shield > --- WEAPON ----------- Heavy Dispersion Rifle High-powered Disruptor Cannon Heavy Neutron Cannon > --- INVENTORY -------- Reinforced Quantum Reactor Experimental Coolant Injector Experimental Matter Compressor Quantum Shading Machine Centrium Light Armor Plating Centrium Light Armor Plating Centrium Light Armor Plating Graphene Brace Transdimensional Reconstructor Hypervelocity EM Gauss Rifle Helical Railgun Helical Railgun Compact Linear Accelerator Improved Remote Datajack Improved Plasma Cutter [Rating: 184] Favorites ----------- Power Subdweller Power Source Engine Subdweller Power Source Power Core Enhanced Nuclear Core Reactor Light Antimatter Reactor Propulsion Cooled Airjet Treads Armored Medium Treads Leg Flexi-carbon Leg Wheel Compact Wheel Hover Unit Cooled Airjet Flight Unit Field Propulsion Array Utility Improved Hacking Suite Device Advanced Heat Sink Storage Medium Storage Unit Processor Advanced Signal Interpreter Hackware Improved Hacking Suite Protection Scrap Shield Weapon Gatling Laser Energy Gun Gatling Laser Energy Cannon Subdweller Beam Cannon Ballistic Gun KE Penetrator Ballistic Cannon Slug Cannon Launcher Subdweller Shrapnel Launcher Special Weapon Improved Plasma Cutter Slashing Weapon Makeshift Sword Build | -11 -10 -10 -8 -8 -6 -6 -6 -5 -5 -5 -5 -4 -4 -4 -4 -3 -3 -3 -2 ------- Run | Yrd Mat Sub Rec Scr Fac Low Low Fac Ext Cet Arc Fac Upp Upp Zhi Pro Res Tes Res Slots Evolved 16 | . . . . . 8 . . 2 . . . 2 . . . . 2 . 2 Power 1 | . . . . . . . . . . . . 1 . . . . . . . Propulsion 4 | . . . . . 2 . . . . . . 1 . . . . . . 1 Utility 9 | . . . . . 5 . . 2 . . . . . . . . 1 . 1 Weapon 2 | . . . . . 1 . . . . . . . . . . . 1 . . Parts Attached 278 | 6 1 22 4 8 48 3 2 9 42 4 8 20 12 17 4 3 27 17 21 Power 36 | 1 . 5 1 1 5 . . 1 5 . 1 3 1 2 1 . 3 1 5 Engine 11 | 1 . 5 1 . 2 . . . 2 . . . . . . . . . . Core 13 | . . . . 1 3 . . 1 3 . . 2 1 2 . . . . . Reactor 12 | . . . . . . . . . . . 1 1 . . 1 . 3 1 5 Propulsion 72 | 2 . 7 2 3 12 . . 3 7 . 2 5 4 6 1 . 6 4 8 Treads 7 | . . . . . . . . . . . . . 2 3 . . . . 2 Leg 22 | . . 2 2 1 3 . . . 2 . . . 1 . . . 6 4 1 Wheel 9 | 2 . 5 . . . . . . . . . . . 2 . . . . . Hover 30 | . . . . 2 9 . . 3 5 . 2 5 . . 1 . . . 3 Flight 4 | . . . . . . . . . . . . . 1 1 . . . . 2 Utility 102 | 1 1 2 . 2 20 3 2 4 19 2 4 9 4 6 1 2 11 6 3 Device 44 | . . . . 1 10 . . 2 9 . 2 4 2 2 . 1 4 5 2 Storage 7 | 1 1 . . 1 . 1 1 . 1 . . . . . . . 1 . . Processor 17 | . . . . . 5 . 1 . 3 . . 3 1 1 . 1 1 1 . Hackware 12 | . . . . . 2 . . 2 4 . 2 1 . . . . 1 . . Protection 22 | . . 2 . . 3 2 . . 2 2 . 1 1 3 1 . 4 . 1 Artifact . | . . . . . . . . . . . . . . . . . . . . Weapon 68 | 2 . 8 1 2 11 . . 1 11 2 1 3 3 3 1 1 7 6 5 Energy Gun 28 | 2 . . . 1 6 . . . 3 2 1 1 1 . . . 6 2 3 Energy Cannon 14 | . . 3 1 . 3 . . 1 1 . . 1 . 2 1 . . 1 . Ballistic Gun 9 | . . . . 1 1 . . . 4 . . . 1 . . . . 1 1 Ballistic Cannon 8 | . . 1 . . . . . . 2 . . 1 1 . . 1 1 1 . Launcher 6 | . . 4 . . 1 . . . . . . . . . . . . 1 . Special Weapon 2 | . . . . . . . . . 1 . . . . . . . . . 1 Impact Weapon . | . . . . . . . . . . . . . . . . . . . . Slashing Weapon 1 | . . . . . . . . . . . . . . 1 . . . . . Piercing Weapon . | . . . . . . . . . . . . . . . . . . . . Special Melee Weapon . | . . . . . . . . . . . . . . . . . . . . Unidentified Prototypes 27 | . . . . . 2 . . . . 2 . 2 . . 4 . 3 12 2 Corrupted Parts 1 | . . . . . . . . . 1 . . . . . . . . . . System Corruption 2 | . . . . . . . . . 2 . . . . . . . . . . Parts Lost 126 | . . 5 . . 17 . . 3 36 . . 14 4 13 . . 1 . 33 Power 11 | . . 1 . . 1 . . . 4 . . 2 . 1 . . 1 . 1 Propulsion 38 | . . 1 . . 6 . . 2 6 . . 3 2 5 . . . . 13 Utility 43 | . . . . . 8 . . 1 16 . . 5 . 3 . . . . 10 Weapon 34 | . . 3 . . 2 . . . 10 . . 4 2 4 . . . . 9 Highest Loss Streak 21 | . . 4 . . 8 . . 2 21 . . 6 3 11 . . 1 . 13 To Critical Strikes 1 | . . . . . . . . . 1 . . . . . . . . . . Average Backups 7 | . 2 4 3 6 5 7 9 8 7 9 9 9 8 5 4 5 6 14 13 Power . | . . . . . . 1 1 1 . . . . . . . . . . . Propulsion . | . . . . . . . . . . 1 1 . . . 1 2 . . . Utility 2 | . . 1 2 5 2 1 2 1 1 4 3 3 1 . . . 1 7 6 Weapon 2 | . . 1 1 . 1 3 4 3 3 2 3 3 5 2 1 1 1 3 3 Tool/Special . | . . . . . . . . . . . . . . . . . . . . Unused Backups 44 | . . 3 . 10 15 1 1 3 . . 1 2 . . . . 3 3 2 Power 4 | . . . . 1 1 . 1 . . . . . . . . . . 1 . Propulsion 9 | . . . . 3 2 1 . 1 . . . . . . . . 2 . . Utility 18 | . . 1 . 5 9 . . . . . 1 1 . . . . . . 1 Weapon 11 | . . 2 . 1 3 . . . . . . 1 . . . . 1 2 1 Tool/Special 2 | . . . . . . . . 2 . . . . . . . . . . . Average Slot Usage (%) 81 | . 85 83 80 67 70 91 93 95 81 100 99 94 72 71 78 89 89 96 78 Engine 3 | . 14 13 14 1 . . . . . 5 5 2 . . . . . . . Core 2 | . . . . 5 4 6 6 5 4 . . 5 . 5 7 5 . . . Reactor 1 | . . . . . . . . . . . . 1 3 . 2 5 6 9 6 Leg 9 | . . 8 28 27 5 . . . . . . . 1 1 . . 15 23 16 Wheel 3 | . 28 18 . . . . . . . . . . . 4 10 10 2 . . Hover 8 | . . . . . 14 26 26 23 18 23 22 25 13 3 3 5 1 . . Device 9 | . . . . 6 11 16 16 13 9 11 10 10 14 12 10 10 15 21 21 Storage 3 | . 14 2 . 9 1 4 6 5 4 5 5 5 5 1 . . . 4 4 Processor 7 | . . . . . 10 9 9 11 12 11 11 9 11 17 21 21 13 6 4 Hackware 6 | . . . . . 4 6 6 16 12 17 17 14 10 6 5 5 5 9 6 Protection 5 | . . 11 14 4 3 2 6 2 1 4 5 5 . 3 4 5 3 4 4 Energy Gun 5 | . 28 1 . 1 5 17 13 13 6 2 16 11 . . . . 9 6 3 Energy Cannon 6 | . . 20 14 7 3 . . . . . . 1 2 3 . 7 4 7 5 Ballistic Gun 1 | . . . . 1 2 . . . 3 13 . . 3 . . . . . 1 Launcher 1 | . . 4 8 . . . . . . . . . . . . . . . . Peak Build Rating 184 | 6 7 20 21 22 84 78 69 92 89 92 99 119 109 101 106 106 131 163 184 Average Rating 65 | 4 6 13 19 16 57 68 69 83 72 86 94 104 88 82 92 103 113 149 147 On Entrance 70 | . 6 6 20 17 22 73 69 69 88 82 92 97 81 83 94 106 101 131 163 Avg Prop Armor Cover (%) 8 | . . 1 . . 9 . . . 10 . . . 8 10 9 7 7 . 11 Naked Turns . | . . . . . . . . . . . . . . . . . . . . Heaviest Build 121 | 14 19 39 39 33 67 32 32 39 66 49 47 58 57 59 60 60 89 93 121 Greatest Support 143 | 26 26 40 40 38 48 32 32 48 53 45 46 58 46 50 44 44 105 115 143 Greatest Overweight (x) 3 | 1 . 2 1 2 3 . . 1 2 1 1 1 1 1 1 1 1 . 1 Average Overweight (x) . | . . . . . . . . . . . . . . . . 1 . . . Largest Inventory Capacity 15 | 8 10 10 5 15 15 10 10 10 10 10 10 10 10 10 5 5 15 15 15 Average Capacity 8 | 7 9 5 5 11 7 8 10 10 9 10 10 10 10 6 5 5 7 15 14 Most Carried 15 | . 5 8 5 15 15 10 10 10 10 10 10 10 10 10 5 5 15 15 15 Average Carried 7 | . 2 4 4 8 6 8 9 9 7 9 9 9 8 6 4 5 6 14 12 Final Capacity 15 | 8 10 5 5 15 5 10 10 10 10 10 10 10 10 5 5 5 15 15 5 Final Carried 15 | . 5 5 5 12 5 10 10 10 10 10 10 9 10 5 5 5 14 15 3 Class Distribution -------------------- 24% | Mutant 18% | Scavenger-Tank 16% | Subdweller-Mutant 13% | Hacker-Mutant 9% | Derelict-Mutant 5% | Scavenger-Mutant 4% | Skirmisher 3% | Hacker-Skirmisher Dominant Class ---------------- Mutant | -10/Materials Subdweller-Mutant | -10/Subcaves Subdweller-Mutant | -8/Recycling Mutant | -8/Scraptown Mutant | -6/Factory Skirmisher | -6/Lower Caves Mutant | -6/Lower Caves Hacker-Skirmisher | -5/Factory Hacker-Mutant | -5/Extension Scavenger-Tank | -5/Cetus Scavenger-Tank | -5/Archives Scavenger-Tank | -4/Factory Hacker-Mutant | -4/Upper Caves Derelict-Mutant | -4/Upper Caves Derelict-Mutant | -4/Zhirov Derelict-Mutant | -3/Proximity Caves Scavenger-Tank | -3/Research Scavenger-Tank | -3/Testing Scavenger-Tank | -2/Research Resources | -11 -10 -10 -8 -8 -6 -6 -6 -5 -5 -5 -5 -4 -4 -4 -4 -3 -3 -3 -2 ----------- Run | Yrd Mat Sub Rec Scr Fac Low Low Fac Ext Cet Arc Fac Upp Upp Zhi Pro Res Tes Res Matter Collected 7725 | 198 210 897 200 130 733 124 97 185 1222 339 155 371 355 470 76 92 949 300 622 Remotely 10 | . . . . . . . . . . . . . . 10 . . . . . Salvage Created 10211 | . 75 805 583 . 1373 211 . 792 2031 96 107 764 161 292 233 151 325 780 1432 Parts 411 | . 6 47 25 . 45 4 . 37 71 3 4 32 6 5 1 5 15 25 80 Haulers Intercepted 1 | . . . . . . . . . 1 . . . . . . . . . . Recyclers Shooed 6 | . . . . . 4 . . . 2 . . . . . . . . . . Parts Field Recycled . | . . . . . . . . . . . . . . . . . . . . Retrieved Matter . | . . . . . . . . . . . . . . . . . . . . Parts Self-Destructed 34 | . . 17 . . . 4 . . . . . . 5 2 1 5 . . . Prevented 2 | . . . . . . . . . . . . . . . . 2 . . . Parts Restored . | . . . . . . . . . . . . . . . . . . . . Kills | -11 -10 -10 -8 -8 -6 -6 -6 -5 -5 -5 -5 -4 -4 -4 -4 -3 -3 -3 -2 ------- Run | Yrd Mat Sub Rec Scr Fac Low Low Fac Ext Cet Arc Fac Upp Upp Zhi Pro Res Tes Res Combat Hostiles Destroyed 183 | . 1 25 11 . 28 2 . 16 27 1 1 16 4 7 . 4 7 9 24 Melee 1 | . . . . . . . . . . . . . . . . 1 . . . Guns 70 | . 1 . . . 12 1 . 5 20 1 1 11 2 . . . 2 1 13 Cannons 64 | . . 13 7 . 9 . . . 2 . . 3 2 7 . 3 5 4 9 AOE 30 | . . 11 4 . 3 1 . 9 . . . 1 . . . . . . 1 Classes Destroyed 21 | . 2 4 5 . 3 . . 3 2 . . . . . . . 1 1 . Worker 10 | . . . . . 2 . . 6 1 . . . . . . . 1 . . Builder 9 | . . . . . . . . 1 5 . . 1 . . . . . . 2 Tunneler 1 | . . . . . . . . 1 . . . . . . . . . . . Hauler 1 | . . . . . . . . . 1 . . . . . . . . . . Recycler 6 | . . . 1 . 1 . . 1 3 . . . . . . . . . . Operator 4 | . . . . . 1 . . . 1 . 1 . . . . . . 1 . Turret 2 | . . 2 . . . . . . . . . . . . . . . . . Watcher 10 | . 1 . . . 1 . . 3 2 1 . . . . . . . . 2 Swarmer 47 | . . 7 1 . 6 . . 9 4 . . 3 . 1 . 4 3 . 9 Cutter 1 | . . . . . . . . 1 . . . . . . . . . . . Grunt 43 | . 1 4 2 . 13 . . 1 9 . . 5 . 3 . . 1 2 2 Brawler 2 | . . . 1 . . . . . . . . . . 1 . . . . . Duelist 3 | . . . 1 . . . . . 1 . . . . 1 . . . . . Protector 1 | . . . 1 . . . . . . . . . . . . . . . . Researcher 2 | . . . . . . . . . . . . . . . . . . 2 . Sentry 21 | . . 1 4 . 2 1 . 1 5 . 1 2 1 1 . . . . 2 Hunter 12 | . . . . . 2 . . . 4 . . . . . . . 2 2 2 Programmer 34 | . . . 1 . 5 1 . 4 2 . . 6 2 . . . . 4 9 Behemoth 3 | . . . . . . . . . 2 . . . 1 . . . . . . Cetus Guard 1 | . . . . . . . . . . 1 . . . . . . . . . Striker 1 | . . . . . . . . . . . . . . . . . 1 . . Protovariant Y 1 | . . . . . . . . . . . . . . . . . . 1 . Subdweller 13 | . . 13 . . . . . . . . . . . . . . . . . Packrat 2 | . . . . . . 2 . . . . . . . . . . . . . Best Kill Streak 10 | . 1 10 8 . 5 1 . 6 8 2 1 4 2 3 . 2 3 2 9 Combat Bots Only 8 | . 1 8 8 . 5 1 . 5 5 1 1 3 2 3 . 2 2 2 8 Max Kills in Single Turn 4 | . 1 3 2 . 2 1 . 4 2 1 1 2 1 1 . 1 2 1 2 Gunslinging . | . . . . . . . . . . . . . . . . . . . . Exploded 3 | . . 3 2 . 2 1 . 3 . . . 1 . . . . . . 1 Melee 1 | . . . . . . . . . . . . . . . . 1 . . . Uniques/NPCs Destroyed . | . . . . . . . . . . . . . . . . . . . . Combat | -11 -10 -10 -8 -8 -6 -6 -6 -5 -5 -5 -5 -4 -4 -4 -4 -3 -3 -3 -2 -------- Run | Yrd Mat Sub Rec Scr Fac Low Low Fac Ext Cet Arc Fac Upp Upp Zhi Pro Res Tes Res Hostile Shots Fired 1770 | . . 71 17 . 284 5 1 44 282 10 . 188 75 122 . 41 69 75 486 Missed 600 | . . 32 7 . 103 1 1 12 79 6 . 66 13 41 . 10 32 42 155 Hits 1170 | . . 39 10 . 181 4 . 32 203 4 . 122 62 81 . 31 37 33 331 Melee 2 | . . . . . . . . . . . . . . 1 . . . . 1 Projectile 1168 | . . 39 10 . 181 4 . 32 203 4 . 122 62 80 . 31 37 33 330 AOE 12 | . . 8 . . 2 . . . 1 . . . . . . . 1 . . Critical Strikes 68 | . . 3 1 . 8 1 . 2 9 1 . 13 4 2 . . 1 6 17 Actively Blocked 17 | . . . . . . . . . . . . . 4 2 . . 1 5 5 Part Disruptions 8 | . . . . . 1 1 . 1 . . . 1 1 . . . . 1 2 Damage Taken 24526 | . . 1221 137 . 2831 135 . 575 4211 65 . 2406 1471 1643 . 683 852 813 7483 Core 4147 | . . 198 15 . 824 18 . 40 863 . . 137 217 241 . 45 17 124 1408 Absorbed by Shields 145 | . . . . . . . . . 18 40 . 87 . . . . . . . Reduced by Siege Mode 230 | . . . . . . . . . . . . . . . . . . . 230 Redirected to Shielding 21 | . . . . . . . . . . . . . . 21 . . . . . Ignored by Resistances 374 | . . . . . . . . . . . . . . . . . . . 374 Regen/Repaired (Parts) 470 | . . . . . . . . . . . . 82 . . . . 388 . . Core Remaining (%) 42 | 100 . . . 14 . . . . . . 9 . . . . 44 . 89 . Volleys Fired 663 | . 3 83 20 . 71 8 . 34 137 20 11 70 20 37 . 12 21 41 75 Largest 4 | . 2 2 2 . 3 3 . 3 3 3 3 3 3 3 . 2 4 4 3 Hottest 315 | . 90 160 160 . 240 240 . 258 258 94 254 254 256 196 . 171 315 315 314 Shots Fired 1383 | . 6 140 32 . 150 17 . 74 263 61 31 138 49 55 . 19 73 100 175 Gun 783 | . 6 12 . . 100 14 . 61 193 61 31 107 15 9 . . 30 38 106 Cannon 554 | . . 105 29 . 44 . . 8 69 . . 27 34 46 . 19 43 62 68 Launcher 45 | . . 23 3 . 6 3 . 5 1 . . 4 . . . . . . . Special 1 | . . . . . . . . . . . . . . . . . . . 1 Kinetic 445 | . . 38 3 . 34 . . . 153 61 5 9 24 35 . 1 22 . 60 Thermal 871 | . 3 99 29 . 110 14 . 69 109 . 26 125 25 20 . 11 51 88 92 Explosive 21 | . . 2 . . 6 3 . 5 1 . . 4 . . . . . . . Electromagnetic 45 | . 3 1 . . . . . . . . . . . . . 7 . 12 22 Robot Hit Streak 24 | . 2 13 5 . 22 24 . 18 18 7 3 11 16 21 . 4 7 24 16 Robot Miss Streak 7 | . 1 4 3 . 7 2 . 5 5 2 4 4 3 4 . 4 5 5 4 Penetration Max 1 | . . . . . . . . . 1 1 . . . . . . . . 1 Secondary Targets 10 | . . . . . 4 . . . 2 . . 3 . . . . . . 1 Max Gunslinging Chain 1 | . . . . . 1 . . . 1 . . 1 . . . . . . 1 Shots Hit Robots 874 | . 3 65 17 . 111 14 . 57 181 44 14 77 38 33 5 11 43 61 100 Core Hits 491 | . 3 39 22 . 71 14 . 59 112 16 7 41 10 10 2 5 18 21 41 Critical Kills 13 | . . 1 . . 2 . . 1 4 . . . . . . . 1 . 4 Critical Parts Destroyed 11 | . . . . . . . . . 5 . . . . . . . . . 6 Critical Strikes 36 | . . 2 . . 3 . . 1 11 1 . 2 . . . . 4 2 10 Burn 8 | . . 1 . . . . . . 1 . . 1 . . . . 3 2 . Meltdown 4 | . . 1 . . 2 . . 1 . . . . . . . . . . . Destroy 23 | . . . . . 1 . . . 10 1 . . . . . . 1 . 10 Blast 1 | . . . . . . . . . . . . 1 . . . . . . . Melee Attacks 14 | . . . . . . . . . . . . . . . 5 9 . . . Impact . | . . . . . . . . . . . . . . . . . . . . Slashing 14 | . . . . . . . . . . . . . . . 5 9 . . . Piercing . | . . . . . . . . . . . . . . . . . . . . Sneak Attacks . | . . . . . . . . . . . . . . . . . . . . Combat Hostiles . | . . . . . . . . . . . . . . . . . . . . Follow-up Attacks . | . . . . . . . . . . . . . . . . . . . . Damage Inflicted 30469 | . 53 2458 1084 . 3328 375 . 2398 4506 1088 446 3026 1503 1483 374 357 1173 2105 4712 Guns 14671 | . 53 123 . . 1892 276 . 1356 3315 1088 446 1895 386 178 . . 472 799 2392 Cannons 11146 | . . 1155 449 . 821 . . 153 1191 . . 578 1117 1244 . 214 701 1296 2227 Explosions 4125 | . . 1180 635 . 615 99 . 889 . . . 553 . 61 . . . . 93 Melee 517 | . . . . . . . . . . . . . . . 374 143 . . . Ramming 10 | . . . . . . . . . . . . . . . . . . 10 . Kinetic 9024 | . . 1268 635 . 419 . . . 1986 1088 21 279 841 956 . . 224 . 1307 Thermal 17511 | . 38 1096 449 . 2294 276 . 1509 2520 . 425 2194 662 527 . 64 949 1798 2710 Explosive 2083 | . . 83 . . 459 99 . 889 . . . 553 . . . . . . . Electromagnetic 1324 | . 15 11 . . 156 . . . . . . . . . . 150 . 297 695 Impact . | . . . . . . . . . . . . . . . . . . . . Slashing 517 | . . . . . . . . . . . . . . . 374 143 . . . Piercing . | . . . . . . . . . . . . . . . . . . . . Highest Corruption 29 | . . . . . 8 8 8 2 7 7 7 10 2 2 2 2 . 6 29 Average Corruption 4 | . . . . . 5 8 8 1 4 7 5 8 1 2 2 2 . 5 8 Corruption Purged 7 | . . . . . . . . . . . 7 . . . . . . . . Corruption Blocked . | . . . . . . . . . . . . . . . . . . . . Effects 190 | . . . . . 21 20 7 4 29 18 11 8 22 21 5 4 . 7 13 Message Errors 36 | . . . . . 4 4 2 . 4 3 2 1 4 8 . . . 3 1 Matter Fused 40 | . . . . . 2 6 3 . 9 2 2 1 5 2 4 . . . 4 Heat Flow Errors 20 | . . . . . 2 1 1 . 5 2 2 1 3 2 . . . . 1 Energy Discharges 33 | . . . . . 4 4 . 3 3 6 2 3 2 4 . 1 . . 1 Parts Rejected 8 | . . . . . 2 . . . . 3 1 . . . . . . . 2 Parts Fused 4 | . . . . . 2 . . . . . . . 1 1 . . . . . Data Loss (minor) 25 | . . . . . 2 3 1 . 4 1 1 . 3 3 1 2 . 3 1 Data Loss (major) 5 | . . . . . 1 2 . . . . . . 1 1 . . . . . Misfires 8 | . . . . . 1 . . 1 1 1 . 1 1 . . . . 1 1 Alerts 4 | . . . . . . . . . 3 . . . 1 . . . . . . Weapon Failures 7 | . . . . . 1 . . . . . 1 1 1 . . 1 . . 2 Overload Shots 10 | . . . . . . . . . . . . 10 . . . . . . . Effects 1 | . . . . . . . . . . . . 1 . . . . . . . Short Circuit 1 | . . . . . . . . . . . . 1 . . . . . . . Overflow Damage 888 | . . 1 3 . 28 17 . 65 53 . . 93 37 196 134 5 1 97 158 Projectiles 640 | . . . 3 . 27 . . . 53 . . 93 37 171 . . 1 97 158 Explosions 109 | . . 1 . . 1 17 . 65 . . . . . 25 . . . . . Melee 139 | . . . . . . . . . . . . . . . 134 5 . . . Knockbacks 25 | . . 2 . . . . . . 6 . . 1 . 8 . . 4 . 4 Impact . | . . . . . . . . . . . . . . . . . . . . Kinetic 25 | . . 2 . . . . . . 6 . . 1 . 8 . . 4 . 4 Secondary . | . . . . . . . . . . . . . . . . . . . . Self-Inflicted Damage 173 | . . 148 . . 25 . . . . . . . . . . . . . . Shots 5 | . . 4 . . 1 . . . . . . . . . . . . . . Rammed . | . . . . . . . . . . . . . . . . . . . . Targets Rammed 1 | . . . . . . . . . . . . . . . . . . 1 . Kicked 1 | . . . . . . . . . . . . . . . . . . 1 . Crushed . | . . . . . . . . . . . . . . . . . . . . Highest Temperature 474 | . 30 285 435 . 360 193 195 320 428 296 166 450 140 140 . 474 130 370 252 Average Temperature 107 | . 17 61 128 . 92 89 103 94 112 172 40 133 53 57 . 232 61 179 74 Received Heat Transfer 2620 | . . 117 45 . 549 . . 54 687 . . 379 63 321 . . 48 51 306 Effects 11 | . . . 2 . 3 . . . 3 1 . 2 . . . . . . . Shutdowns 3 | . . . 1 . . . . . 2 . . . . . . . . . . Energy Bleed 2 | . . . . . . . . . . 1 . 1 . . . . . . . Interference 1 | . . . . . 1 . . . . . . . . . . . . . . Matter Decay 1 | . . . 1 . . . . . . . . . . . . . . . . Short Circuit 4 | . . . . . 2 . . . 1 . . 1 . . . . . . . Siege Activations 1 | . . . . . . . . . . . . . . . . . . . 1 Total Turns 20 | . . . . . . . . . . . . . . . . . . . 20 Longest Duration 20 | . . . . . . . . . . . . . . . . . . . 20 Martial Activations . | . . . . . . . . . . . . . . . . . . . . Shielding Activations . | . . . . . . . . . . . . . . . . . . . . Robots Disrupted . | . . . . . . . . . . . . . . . . . . . . Combat Hostiles . | . . . . . . . . . . . . . . . . . . . . Robots Corrupted 2 | . . . . . . . . . . . . . . . . . . 1 1 Combat Hostiles 2 | . . . . . . . . . . . . . . . . . . 1 1 Parts Fried 10 | . . . . . . . . . . . . . . . . 1 . 3 6 Impact Corruptions . | . . . . . . . . . . . . . . . . . . . . Robots Melted 16 | . . 1 . . 4 . . 2 5 . . 1 . . . . . 3 . Combat Hostiles 16 | . . 1 . . 4 . . 2 5 . . 1 . . . . . 3 . Parts Melted 76 | . . 1 2 . 19 1 . 4 15 . 2 8 . . . 1 3 19 1 Heat Transferred 25208 | . 111 1702 666 . 4339 625 . 3075 4933 . 518 2711 111 309 . 100 2100 2600 1308 Parts Sabotaged 2 | . . . . . . . . . . . . . . . . . . . 2 Parts Stolen . | . . . . . . . . . . . . . . . . . . . . Parts Stripped . | . . . . . . . . . . . . . . . . . . . . Power Chain Reactions 3 | . . . . . 1 . . . . . . . . 1 . . . . 1 Alert | -11 -10 -10 -8 -8 -6 -6 -6 -5 -5 -5 -5 -4 -4 -4 -4 -3 -3 -3 -2 ------- Run | Yrd Mat Sub Rec Scr Fac Low Low Fac Ext Cet Arc Fac Upp Upp Zhi Pro Res Tes Res Maximum Alert Level 2 | . . . 1 . 2 . . 2 1 1 1 2 . . . . 1 1 2 Low Security (%) 62 | 100 100 . 91 . 35 . . 68 93 33 60 41 . . . . 95 16 38 Level 1 30 | . . . 8 . 54 . . 27 6 66 39 33 . . . . 4 83 21 Level 2 7 | . . . . . 10 . . 4 . . . 25 . . . . . . 39 Level 3 . | . . . . . . . . . . . . . . . . . . . . Level 4 . | . . . . . . . . . . . . . . . . . . . . Level 5 . | . . . . . . . . . . . . . . . . . . . . High Security . | . . . . . . . . . . . . . . . . . . . . Max Security . | . . . . . . . . . . . . . . . . . . . . Peak Influence 544 | . 25 . 238 . 455 . . 415 356 312 298 512 . . . . 272 319 544 Initial 196 | . . . 31 . . . . 83 105 196 100 42 . . . . 150 149 129 Average 165 | . 5 . 54 . 273 . . 181 63 229 186 250 . . . . 49 238 303 Influence Increases 8704 | . 52 370 370 . 1189 215 150 916 1260 286 243 1008 115 285 15 90 719 508 913 Destroy 0b10 Robot/C 4140 | . 20 280 220 . 600 40 . 360 640 160 80 460 80 140 . 80 260 240 480 Destroy 0b10 Robot/NC 290 | . 5 . 30 . 30 . . 65 75 10 10 5 . . 15 . 5 20 20 Destroy Leader 658 | . 2 30 . . 152 10 . 88 96 . . 70 20 10 . 10 30 36 104 Allied During Kill 665 | . . . 1 . 40 . . 9 116 93 90 148 . . . . 95 73 . Trap Triggered on 0b10 10 | . . . . . 10 . . . . . . . . . . . . . . Successful Hack 363 | . 10 . 22 . 12 . . 41 85 . . 45 . . . . 82 45 21 Select Force Hacks 80 | . . . 30 . 50 . . . . . . . . . . . . . . Disable Machine 525 | . 15 . 30 . 120 . . 30 75 15 45 60 . . . . 30 60 45 Destroy Structure 683 | . . . 37 . 40 . . 128 68 8 18 160 . . . . 52 34 138 Advance Influence 150 | . . . . . . . . . . . . . . . . . 150 . . Partial Spotted 60 | . . . . . . . . 15 30 . . . . . . . 15 . . Lose Combat Pursuer 1080 | . . 60 . . 135 165 150 180 75 . . 60 15 135 . . . . 105 Influence Decreases 8318 | . 52 305 435 . 834 442 145 834 1123 386 374 662 582 285 15 90 453 543 758 Entered New Map 1131 | . . . 34 . . 132 25 50 110 156 152 79 174 . . . . 117 102 Time Decay 4958 | . 52 295 243 . 474 310 120 434 423 230 222 359 398 225 15 90 356 386 326 Lost Part 1015 | . . 10 . . 170 . . 30 255 . . 140 10 60 . . 10 . 330 Lost Ally 442 | . . . 20 . 40 . . 20 200 . . 82 . . . . 40 40 . Purge Threat 772 | . . . 138 . 150 . . 300 135 . . 2 . . . . 47 . . Squads Dispatched 52 | . . . . . 12 . . 12 4 . . 9 . 1 . . 6 5 3 Investigation 21 | . . . . . 4 . . 6 3 . . 3 . . . . 5 . . Extermination 13 | . . . . . 4 . . 2 . . . 2 . . . . . 3 2 Reinforcement 13 | . . . . . 4 . . 3 1 . . 2 . . . . 1 2 . Assault 3 | . . . . . . . . . . . . 2 . 1 . . . . . Garrison 2 | . . . . . . . . 1 . . . . . . . . . . 1 Intercept . | . . . . . . . . . . . . . . . . . . . . Searches Triggered . | . . . . . . . . . . . . . . . . . . . . Construction Impeded 1 | . . . . . . . . . 1 . . . . . . . . . . Haulers Reinforced . | . . . . . . . . . . . . . . . . . . . . Active Scanning Responses . | . . . . . . . . . . . . . . . . . . . . Cargo Convoy Interrupts 1 | . . . . . . . . . . . . . . . . . . . 1 Stealth | -11 -10 -10 -8 -8 -6 -6 -6 -5 -5 -5 -5 -4 -4 -4 -4 -3 -3 -3 -2 --------- Run | Yrd Mat Sub Rec Scr Fac Low Low Fac Ext Cet Arc Fac Upp Upp Zhi Pro Res Tes Res Distress Signals 32 | . 1 . . . 2 . . 2 4 2 . 3 . . . . 7 2 9 Communications Jammed . | . . . . . . . . . . . . . . . . . . . . Distress Signals . | . . . . . . . . . . . . . . . . . . . . Times Spotted 419 | . 8 27 9 . 53 12 2 36 50 10 9 48 5 16 . 5 27 25 77 Peak Tracking Total 21 | . 4 8 5 . 8 5 7 6 6 5 2 11 2 9 . 4 5 8 21 Tactical Retreats 40 | . . 2 . . 5 7 4 8 3 . . 3 1 4 . . . . 3 Traps | -11 -10 -10 -8 -8 -6 -6 -6 -5 -5 -5 -5 -4 -4 -4 -4 -3 -3 -3 -2 ------- Run | Yrd Mat Sub Rec Scr Fac Low Low Fac Ext Cet Arc Fac Upp Upp Zhi Pro Res Tes Res Traps Triggered 12 | . . 3 . . 4 1 . . 1 . . 1 . . . . 1 . 1 Indirectly . | . . . . . . . . . . . . . . . . . . . . Trap Hack Attempts . | . . . . . . . . . . . . . . . . . . . . Triggered . | . . . . . . . . . . . . . . . . . . . . Disarmed 5 | . 1 . . . . . . . . . . 4 . . . . . . . Reprogrammed . | . . . . . . . . . . . . . . . . . . . . Reused 3 | . . . . . 1 2 . . . . . . . . . . . . . Traps Extracted . | . . . . . . . . . . . . . . . . . . . . Installed 5 | . . 2 . . 1 2 . . . . . . . . . . . . . Triggered 3 | . . . . . 1 2 . . . . . . . . . . . . . Most Traps Carried 1 | . . . . 1 1 . . . . . . . . . . . . . . Machines | -11 -10 -10 -8 -8 -6 -6 -6 -5 -5 -5 -5 -4 -4 -4 -4 -3 -3 -3 -2 ---------- Run | Yrd Mat Sub Rec Scr Fac Low Low Fac Ext Cet Arc Fac Upp Upp Zhi Pro Res Tes Res Machines Disabled 44 | . 1 5 2 . 8 . . 2 7 1 3 4 . 1 . . 2 5 3 Max in Single Turn 4 | . 1 4 1 . 3 . . 2 2 1 1 2 . 1 . . 1 1 1 Garrison Access 4 | . . . . . 1 . . 2 . . . 1 . . . . . . . Energy Cycler 1 | . . . . . . . . . 1 . . . . . . . . . . Machines Repaired . | . . . . . . . . . . . . . . . . . . . . Machines Dismantled 1 | . . . . . . . . . 1 . . . . . . . . . . Machines Sabotaged . | . . . . . . . . . . . . . . . . . . . . Overloaded Fab Kills 4 | . . . . . 4 . . . . . . . . . . . . . . Hacking | -11 -10 -10 -8 -8 -6 -6 -6 -5 -5 -5 -5 -4 -4 -4 -4 -3 -3 -3 -2 --------- Run | Yrd Mat Sub Rec Scr Fac Low Low Fac Ext Cet Arc Fac Upp Upp Zhi Pro Res Tes Res Machines Accessed 102 | . 1 3 10 4 12 . . 16 16 1 1 10 1 1 4 . 10 8 4 Terminals 50 | . 1 . 6 . 4 . . 7 16 1 . 3 1 . . . 5 5 1 Fabricators 6 | . . . . . 1 . . 2 . . . 2 . . . . . . 1 Repair Stations 3 | . . . . . 1 . . . . . . 1 . . . . 1 . . Recycling Units 17 | . . . 4 . 3 . . 5 . . . 3 . . . . 2 . . Scanalyzers 8 | . . . . . 2 . . . . . . . . . . . 2 3 1 Garrison Access 5 | . . . . . 1 . . 2 . . . 1 . . . . . . 1 Total Hacks 275 | . 6 5 30 18 27 . . 38 50 1 1 27 1 1 17 . 27 19 7 Successful 176 | . 4 5 18 18 16 . . 27 26 1 1 18 1 1 17 . 18 3 2 Failed 99 | . 2 . 12 . 11 . . 11 24 . . 9 . . . . 9 16 5 Catastrophic 13 | . . . 2 . 1 . . 1 4 . . 1 . . . . 1 1 2 Database Lockouts . | . . . . . . . . . . . . . . . . . . . . Manual 105 | . 2 . 20 . 13 . . 23 18 1 . 10 . . . . 11 6 1 Terminals 155 | . 6 . 25 . 11 . . 23 50 1 . 10 1 . . . 14 13 1 Fabricators 13 | . . . . . 2 . . 3 . . . 5 . . . . . . 3 Repair Stations 6 | . . . . . 1 . . . . . . 3 . . . . 2 . . Recycling Units 32 | . . . 5 . 8 . . 10 . . . 6 . . . . 3 . . Scanalyzers 19 | . . . . . 4 . . . . . . . . . . . 8 6 1 Garrison Access 8 | . . . . . 1 . . 2 . . . 3 . . . . . . 2 Terminal Hacks 108 | . 4 5 10 18 4 . . 11 20 1 1 6 1 1 17 . 5 3 1 Record 29 | . . 3 1 17 . . . . 1 . 1 . 1 . 5 . . . . Part Schematic 7 | . . . 1 . . . . . 2 . . . . . 4 . . . . Robot Analysis 8 | . 2 . 1 . . . . . 1 . . . . . 4 . . . . Prototype ID Bank 5 | . . . 1 . . . . . . . . . . . 4 . . . . Open Door 8 | . . 1 . . . . . 1 4 1 . . . 1 . . . . . Level Access Points 3 | . . . 1 . . . . 1 . . . 1 . . . . . . . Branch Access Points 5 | . . . . . 1 . . 1 . . . 1 . . . . 1 . 1 Terminal Index 2 | . . . . . . . . . . . . . . . . . 1 1 . Recycling Unit Index 1 | . . . . . . . . . . . . . . . . . 1 . . Garrison Index 1 | . . . . . . . . . 1 . . . . . . . . . . Alert Level 6 | . . . 1 . . . . 1 3 . . . . . . . . 1 . Unreport Threat 9 | . . . 2 . 1 . . 2 1 . . 1 . . . . 2 . . Locate Traps 8 | . 1 . . . . . . 1 5 . . 1 . . . . . . . Disarm Traps 2 | . 1 . . . . . . . . . . 1 . . . . . . . Dispatch Records 1 | . . . 1 . . . . . . . . . . . . . . . . Patrol Status 1 | . . . . . . . . . 1 . . . . . . . . . . Recall Investigation 2 | . . . . . . . . 1 1 . . . . . . . . . . Registered Components 3 | . . . . . 1 . . 1 . . . 1 . . . . . . . Registered Prototypes 1 | . . . . . . . . . . . . . . . . . . 1 . Zone Layout 4 | . . . 1 . 1 . . 2 . . . . . . . . . . . Proto ID Catalog 2 | . . 1 . 1 . . . . . . . . . . . . . . . Fabricator Hacks 5 | . . . . . . . . 2 . . . 2 . . . . . . 1 Network Status 3 | . . . . . . . . 2 . . . 1 . . . . . . . Build 2 | . . . . . . . . . . . . 1 . . . . . . 1 Repair Station Hacks 5 | . . . . . 1 . . . . . . 2 . . . . 2 . . Scan Component 3 | . . . . . 1 . . . . . . 1 . . . . 1 . . Repair 2 | . . . . . . . . . . . . 1 . . . . 1 . . Recycling Unit Hacks 11 | . . . 4 . 2 . . 3 . . . 2 . . . . . . . Report Inventory 11 | . . . 4 . 2 . . 3 . . . 2 . . . . . . . Scanalyzer 9 | . . . . . 3 . . . . . . . . . . . 6 . . Insert Component 1 | . . . . . . . . . . . . . . . . . 1 . . Analyze 1 | . . . . . . . . . . . . . . . . . 1 . . Retrieve Study 7 | . . . . . 3 . . . . . . . . . . . 4 . . Garrison Access Hacks 4 | . . . . . 1 . . 2 . . . 1 . . . . . . . Seal Access 4 | . . . . . 1 . . 2 . . . 1 . . . . . . . Unauthorized Hacks 34 | . . . 4 . 5 . . 9 6 . . 5 . . . . 5 . . Terminals 18 | . . . 3 . 2 . . 3 6 . . 1 . . . . 3 . . Track 1 | . . . . . . . . . 1 . . . . . . . . . . Assimilate 1 | . . . . . . . . 1 . . . . . . . . . . . Botnet 15 | . . . 3 . 2 . . 2 4 . . 1 . . . . 3 . . Operators 1 | . . . . . . . . . 1 . . . . . . . . . . Fabricators 2 | . . . . . 1 . . 1 . . . . . . . . . . . Fabnet 1 | . . . . . . . . 1 . . . . . . . . . . . Overload 1 | . . . . . 1 . . . . . . . . . . . . . . Repair Stations . | . . . . . . . . . . . . . . . . . . . . Recycling Units 13 | . . . 1 . 2 . . 5 . . . 3 . . . . 2 . . Tunnel 1 | . . . 1 . . . . . . . . . . . . . . . . Fedlink 11 | . . . . . 2 . . 5 . . . 3 . . . . 1 . . Scrapoids 1 | . . . . . . . . . . . . . . . . . 1 . . Scanalyzers . | . . . . . . . . . . . . . . . . . . . . Garrison Access 1 | . . . . . . . . . . . . 1 . . . . . . . Watchers 1 | . . . . . . . . . . . . 1 . . . . . . . Data Cores Recovered 4 | . . . . . 1 . . . 2 . . . . . . . . 1 . Used 1 | . . . . . . . . . 1 . . . . . . . . . . Hacking Detections 69 | . 1 . 8 . 10 . . 9 15 . . 6 . . . . 8 8 4 Full Trace Events 7 | . . . 3 . 1 . . 1 2 . . . . . . . . . . Feedback Events . | . . . . . . . . . . . . . . . . . . . . Feedback Blocked . | . . . . . . . . . . . . . . . . . . . . Robot Schematics Acquired . | . . . . . . . . . . . . . . . . . . . . Robots Built . | . . . . . . . . . . . . . . . . . . . . Authchips . | . . . . . . . . . . . . . . . . . . . . Time . | . . . . . . . . . . . . . . . . . . . . Total Robot Build Rating . | . . . . . . . . . . . . . . . . . . . . Part Schematics Acquired 17 | . . . 1 . . . . . 2 . . . . . 4 . 1 9 . Parts Built 4 | . . . . . . . . . . . . 2 . . . . . . 2 Authchips . | . . . . . . . . . . . . . . . . . . . . Time 115 | . . . . . . . . . . . . 69 . . . . . . 46 Total Part Build Rating 36 | . . . . . . . . . . . . 18 . . . . . . 18 Part Studies Acquired 7 | . . . . . 3 . . . . . . . . . . . 4 . . Parts Repaired 2 | . . . . . . . . . . . . 1 . . . . 1 . . Time 106 | . . . . . . . . . . . . 50 . . . . 56 . . Parts Recycled . | . . . . . . . . . . . . . . . . . . . . Recycled Matter . | . . . . . . . . . . . . . . . . . . . . Retrieved Matter . | . . . . . . . . . . . . . . . . . . . . Retrieved Components . | . . . . . . . . . . . . . . . . . . . . Parts Scanalyzed 1 | . . . . . . . . . . . . . . . . . 1 . . Part Schematics Acquired 1 | . . . . . . . . . . . . . . . . . 1 . . Parts Damaged . | . . . . . . . . . . . . . . . . . . . . Bothacking | -11 -10 -10 -8 -8 -6 -6 -6 -5 -5 -5 -5 -4 -4 -4 -4 -3 -3 -3 -2 ------------ Run | Yrd Mat Sub Rec Scr Fac Low Low Fac Ext Cet Arc Fac Upp Upp Zhi Pro Res Tes Res Used RIF Installer . | . . . . . . . . . . . . . . . . . . . . Robots Hacked 5 | . . . . . . . . . . . . 5 . . . . . . . Non-combat . | . . . . . . . . . . . . . . . . . . . . Combat 5 | . . . . . . . . . . . . 5 . . . . . . . Robot Hacks Applied . | . . . . . . . . . . . . . . . . . . . . Relay Couplers Released 7 | . . . . . . . . 4 . . . . . . . . . . 3 Programmers 7 | . . . . . . . . 4 . . . . . . . . . . 3 Fabnet Peak Effective % 3 | . . . . . . . . . . . . 3 3 3 3 1 1 1 . Autooverrided 5 | . . . . . . . . . . . . 5 . . . . . . . Robots Rewired 8 | . . . 2 . . . . 2 4 . . . . . . . . . . Allies Hacked 3 | . . . . . . . . . 2 . . . . . . . . 1 . Hacks Repelled . | . . . . . . . . . . . . . . . . . . . . Allies | -11 -10 -10 -8 -8 -6 -6 -6 -5 -5 -5 -5 -4 -4 -4 -4 -3 -3 -3 -2 -------- Run | Yrd Mat Sub Rec Scr Fac Low Low Fac Ext Cet Arc Fac Upp Upp Zhi Pro Res Tes Res Total Allies 35 | . . . 2 1 . . . 3 14 5 . 5 . . . . 5 . . Largest Group 8 | . . . 2 2 2 . . 3 8 6 6 5 . . . . 5 3 . Highest-Rated Group 639 | . . . 31 67 67 . . 97 231 639 629 468 . . . . 320 192 . Highest-Rated Ally 159 | . . . 16 52 52 . . 42 159 159 156 96 . . . . 64 64 . Total Orders 2 | . . . . 2 . . . . . . . . . . . . . . . STAY 1 | . . . . 1 . . . . . . . . . . . . . . . FOLLOW 1 | . . . . 1 . . . . . . . . . . . . . . . Ally Attacks 298 | . . . 4 . 27 . . 12 70 32 35 37 . . . . 37 44 . Total Damage 8109 | . . . 107 . 902 . . 271 1449 1249 1336 776 . . . . 963 1056 . Kills 45 | . . . 1 . 3 . . 4 7 8 4 8 . . . . 6 4 . Allies Corrupted 2 | . . . . . . . . 1 1 . . . . . . . . . . Allies Melted 1 | . . . . . 1 . . . . . . . . . . . . . . Intel | -11 -10 -10 -8 -8 -6 -6 -6 -5 -5 -5 -5 -4 -4 -4 -4 -3 -3 -3 -2 ------- Run | Yrd Mat Sub Rec Scr Fac Low Low Fac Ext Cet Arc Fac Upp Upp Zhi Pro Res Tes Res Active Infowar (turns) 7664 | . . . . . 1298 698 259 1075 702 491 476 563 397 1168 285 252 . . . Optics 3371 | . . . . . 1298 160 . . 518 491 476 428 . . . . . . . Sensors 3186 | . . . . . 835 698 259 1075 184 . . 135 . . . . . . . Decoding 2102 | . . . . . . . . . . . . . 397 1168 285 252 . . . Robot Analysis Total 8 | . 2 . 1 . . . . . 1 . . . . . 4 . . . . Derelict Logs Recovered 12 | . . 2 . 2 . 3 1 . . . . . 3 1 . . . . . Drone Launches . | . . . . . . . . . . . . . . . . . . . . Drone Recoveries . | . . . . . . . . . . . . . . . . . . . . Exploration | -11 -10 -10 -8 -8 -6 -6 -6 -5 -5 -5 -5 -4 -4 -4 -4 -3 -3 -3 -2 ------------- Run | Yrd Mat Sub Rec Scr Fac Low Low Fac Ext Cet Arc Fac Upp Upp Zhi Pro Res Tes Res Turns Passed 19897 | 34 168 2842 1203 2627 1410 698 259 1075 1554 491 476 851 1539 1168 285 446 1117 916 738 Spaces Moved 17803 | 29 124 2045 767 2222 1454 1161 580 1968 1068 403 339 926 1038 1137 255 334 859 612 482 Core 248 | 2 . . . . 161 . . . 3 . . . . . . . . . 82 Treads 449 | . . . . . . . . . . . . . 229 216 . . . . 4 Legs 5459 | . . 554 767 2205 319 . . . 1 . . . . . . . 657 612 344 Wheels 2922 | 27 124 1491 . . . . . . . . . . . 489 255 334 202 . . Hover 8243 | . . . . 17 974 1161 580 1968 1064 403 339 926 809 . . . . . 2 Flight 482 | . . . . . . . . . . . . . . 432 . . . . 50 Fastest Speed 22 | 50 90 90 115 56 38 38 38 22 50 60 60 52 59 34 100 115 100 102 40 Average Speed 87 | 86 90 123 130 111 65 38 38 41 83 60 66 54 136 90 100 115 107 104 89 Slowest Speed 260 | 95 90 210 195 180 260 38 38 106 190 107 119 132 250 250 115 115 190 105 180 Overloaded Moves 18 | . . . . . . . . 18 . . . . . . . . . . . Propulsion Burnouts . | . . . . . . . . . . . . . . . . . . . . Robots Hopped . | . . . . . . . . . . . . . . . . . . . . Potential Cave-ins 2 | . . . . . . . . . . . . . . . . . . 2 . Cave-ins Triggered . | . . . . . . . . . . . . . . . . . . . . Teleports 1 | . . . . . . . . . . . . . . . . . . . 1 Exploration Rate (%) 61 | 3 34 85 93 89 33 77 43 41 85 87 99 34 91 98 60 56 29 65 19 Regions Visited 19 Branch Regions 13 Pre-discovered Areas 8 | . . 1 1 1 1 1 . . . . . . . . 3 . . . . Known Exits Taken 15 | . . . . 1 1 1 1 1 1 1 1 1 1 1 1 1 1 1 . Unknown Exits Taken 4 | 1 1 1 1 . . . . . . . . . . . . . . . . Scrap Searched 31 | . . 12 . 6 . 2 3 . . . . . 4 2 . 2 . . . Spaces Dug 34 | . . . . . . . . 3 8 . . 14 . . . . . 7 2 Terrain Destroyed 737 | . . 294 38 . 60 56 . 52 45 2 2 72 12 15 . 6 13 14 56 Melee . | . . . . . . . . . . . . . . . . . . . . Projectile 177 | . . 12 3 . 5 . . 4 16 2 2 26 12 15 . 6 13 14 47 AOE 560 | . . 282 35 . 55 56 . 48 29 . . 46 . . . . . . 9 Terrain Rammed . | . . . . . . . . . . . . . . . . . . . . Walls Destroyed . | . . . . . . . . . . . . . . . . . . . . Machines Disabled . | . . . . . . . . . . . . . . . . . . . . Actions | -11 -10 -10 -8 -8 -6 -6 -6 -5 -5 -5 -5 -4 -4 -4 -4 -3 -3 -3 -2 --------- Run | Yrd Mat Sub Rec Scr Fac Low Low Fac Ext Cet Arc Fac Upp Upp Zhi Pro Res Tes Res Total 20876 | 34 174 2228 934 2368 1761 1405 618 2147 1446 605 562 1149 1121 1223 280 367 1004 817 633 Wait 1523 | . 41 26 97 86 131 206 33 109 125 167 188 97 32 16 . 5 55 89 20 Move 17785 | 28 123 2044 766 2221 1453 1160 579 1967 1067 402 338 925 1037 1136 254 333 858 612 482 Hop . | . . . . . . . . . . . . . . . . . . . . Pick Up 138 | . 5 13 3 25 18 8 1 7 12 2 4 9 3 1 3 . 12 8 4 Fast Attach 228 | 6 1 11 6 10 32 2 1 5 34 6 7 13 7 15 8 4 25 20 15 Attach 99 | . . 3 1 . 16 6 . 5 15 . 1 10 10 8 1 . . 3 20 Detach 45 | . . 1 1 . 4 6 . 3 4 . . 3 8 4 1 . 1 4 5 Swap 65 | . . 9 4 1 8 . 1 3 11 2 4 7 . . . . 6 8 1 Drop 233 | . 1 23 10 25 27 7 3 9 8 6 9 14 4 6 8 4 26 32 11 Fire 663 | . 3 83 20 . 71 8 . 34 137 20 11 70 20 37 . 12 21 41 75 Melee 14 | . . . . . . . . . . . . . . . 5 9 . . . Ram . | . . . . . . . . . . . . . . . . . . . . Kick . | . . . . . . . . . . . . . . . . . . . . Crush . | . . . . . . . . . . . . . . . . . . . . Escape Stasis 14 | . . . . . . . . . 13 . . 1 . . . . . . . Rewire 43 | . . . 26 . . . . 5 12 . . . . . . . . . . Trap 5 | . . 2 . . 1 2 . . . . . . . . . . . . . Miscellaneous 21 | . . 13 . . . . . . 8 . . . . . . . . . . Route ------- -11/Scrapyard -10/Materials (discovered 2 exits: [*Mat] / *Sub) -10/Subcaves (discovered 3 exits: [*Mat x2] / *Rec) -8/Recycling (discovered 2 exits: Fac / *Scr) -8/Scraptown (discovered 2 exits: *Fac x2) -6/Factory (discovered 2 exits: *Low x2) -6/Lower Caves -6/Lower Caves -5/Factory (discovered 8 exits: *Fac x4 / *Upp x2 / *Ext x2) -5/Extension (discovered 2 exits: *Fac / *Cet) -5/Cetus (discovered 2 exits: *Fac / *Arc) -5/Archives (discovered 3 exits: *Fac / *Hub x2) -4/Factory (discovered 6 exits: Res x4 / *Upp x2) -4/Upper Caves -4/Upper Caves (discovered 2 exits: *Res / *Zhi) -4/Zhirov -3/Proximity Caves -3/Research (discovered 4 exits: Res / Arm / *Tes x2) -3/Testing -2/Research (discovered 2 exits: Qua x2) History --------- Turn | Location | Event 14 | -11/Scrapyard | Discovered new exit (range 15) 35 | -11/Scrapyard | Entered Materials 36 | -10/Materials | Met a group of wandering Federalists 103 | -10/Materials | Discovered new exit (range 14) 156 | -10/Materials | Discovered new exit (range 4) 203 | -10/Materials | Entered Subcaves 204 | -10/Subcaves | Shifting Twisted Machinery released Spk. Treads 204 | -10/Subcaves | Continued accompanying wandering Federalists (3) 204 | -10/Subcaves | Approached by a straggling Scientist 256 | -10/Subcaves | Ambushed by Subdweller buried in earth 287 | -10/Subcaves | Lost 4 allies 294 | -10/Subcaves | Lost 4 parts (1p1n2w) 305 | -10/Subcaves | Build established: Mutant 316 | -10/Subcaves | Learned location of Zion (-6) 316 | -10/Subcaves | Met a Zionite searching for "candidates" 326 | -10/Subcaves | Shifting Twisted Machinery released Sub. Beam Cannon 462 | -10/Subcaves | Core integrity fell below 50% 726 | -10/Subcaves | Shifting Twisted Machinery released Sub. Power Source 733 | -10/Subcaves | Shifting Twisted Machinery released Sub. Shrapnel Launcher 825 | -10/Subcaves | A swath of the cavern ceiling suddenly collapsed 894 | -10/Subcaves | Discovered new exit (range 16) 912 | -10/Subcaves | Destroyed 8 combat bots 936 | -10/Subcaves | Discovered new exit (range 16) 944 | -10/Subcaves | Build established: Subdweller-Mutant 991 | -10/Subcaves | Disturbed a concealed Subdweller 1037 | -10/Subcaves | Learned Materials terminal intel 1286 | -10/Subcaves | Shifting Twisted Machinery released Barrage Gun 1294 | -10/Subcaves | Shifting Twisted Machinery released Sub. Monowheel 1530 | -10/Subcaves | Ambushed by Subdweller buried in earth 1703 | -10/Subcaves | Discovered new exit (range 11) 2023 | -10/Subcaves | Visited Clippyterm 2773 | -10/Subcaves | Visited 4L-MR0's lab 2792 | -10/Subcaves | Found Tower Shield 3045 | -10/Subcaves | Entered Recycling 3192 | -8/Recycling | Core integrity fell below 20% 3222 | -8/Recycling | Destroyed 8 combat bots 3634 | -8/Recycling | Identified exit to Factory 3694 | -8/Recycling | Build established: Scavenger-Mutant 4063 | -8/Recycling | Scanned before Scraplab entrance 4081 | -8/Recycling | Entered Scraplab 4091 | -8/Recycling | Discovered new exit (range 2) 4118 | -8/Recycling | Build established: Subdweller-Mutant 4248 | -8/Recycling | Entered Scraptown 4248 | -8/Scraptown | Accompanied by 1 ally 4426 | -8/Scraptown | Heard Great Nut preacher, LISTEN AND RECITE! 4502 | -8/Scraptown | Discovered exit to Factory (range 11) 4535 | -8/Scraptown | Build established: Mutant 4572 | -8/Scraptown | Scanned Subdweller tech in exchange for log data 4575 | -8/Scraptown | Learned location of Armory (-3) 4577 | -8/Scraptown | Learned Factory garrison access intel 4611 | -8/Scraptown | Visited IN-MT5's Study 4635 | -8/Scraptown | Visited The Evicted 4686 | -8/Scraptown | Visited Comm Corps 4697 | -8/Scraptown | Visited TADAMA 4708 | -8/Scraptown | Visited Awakened 4721 | -8/Scraptown | Visited Shadow of the Wyrm 4737 | -8/Scraptown | Visited Spacefarers 4977 | -8/Scraptown | Visited UFD Registry 4977 | -8/Scraptown | Registered with UFD as "Gearnuts" 5009 | -8/Scraptown | Visited Abandonware Association 5018 | -8/Scraptown | Learned abandonware demo "OVRCLOCK.EXE" 5021 | -8/Scraptown | Learned abandonware demo "TRNCOAT.EXE" 5021 | -8/Scraptown | Learned abandonware demo "MELTYB.EXE" 5047 | -8/Scraptown | Visited Research Penetration Think Tank 5072 | -8/Scraptown | Visited Science Guys 5133 | -8/Scraptown | Delivered Scrap Shield to a Scientist 5233 | -8/Scraptown | Visited A0-MCA Data Center 5240 | -8/Scraptown | Given a C rating by A0-MCA 5242 | -8/Scraptown | Found A0-MCA's Component Scanner 5268 | -8/Scraptown | Visited DA-N13 Charitable Foundation 5272 | -8/Scraptown | Found DCF Scrap (28 items) 5330 | -8/Scraptown | Visited Observation Area 5345 | -8/Scraptown | Visited Botcube Research 5351 | -8/Scraptown | Found Botcube 5465 | -8/Scraptown | Visited Junk Repository 6500 | -8/Scraptown | Botcube activated 6522 | -8/Scraptown | Botcube completed mutation into wheeled form, armed with 2 cannons. 6804 | -8/Scraptown | Met Optimus 6804 | -8/Scraptown | Accepted into 0bPrime 6841 | -8/Scraptown | Build established: Derelict-Mutant 6862 | -8/Scraptown | Discovered exit to Factory (range 5) 6875 | -8/Scraptown | Entered Factory 6875 | -6/Factory | Accompanied by 2 allies 6875 | -6/Factory | Evolved 8 slots: Propulsion x2, Utility x5, Weapon x1 6876 | -6/Factory | Loaded intel: 4 garrison access locations 6939 | -6/Factory | Loaded intel: 8 recycling unit locations 7189 | -6/Factory | Build established: Mutant 7323 | -6/Factory | Core integrity fell below 50% 7349 | -6/Factory | Lost 8 parts (1p4n3u) 7417 | -6/Factory | Core integrity fell below 20% 7447 | -6/Factory | Attached Tower Shield, gained temporary slots: Power, Propulsion x2, Utility x2, Weapon x2 7871 | -6/Factory | Learned location of Protoforge (-2) 7916 | -6/Factory | Identified exit to Lower Caves 8163 | -6/Factory | Build established: Skirmisher 8244 | -6/Factory | Lost 4 parts (1n1u2w) 8281 | -6/Factory | Spotted B-75 Beast 8285 | -6/Factory | Entered Lower Caves 8287 | -6/Lower Caves | UFD Scientist delivered a prototype 8301 | -6/Lower Caves | Found Enh. Scrap Shield 8343 | -6/Lower Caves | Learned Factory trap positions 8498 | -6/Lower Caves | Attracted the attention of an 0b10 checkpoint 8789 | -6/Lower Caves | Identified exit to Lower Caves 8979 | -6/Lower Caves | Spotted B-75 Beast 8983 | -6/Lower Caves | Entered another Lower Caves area 8983 | -6/Lower Caves | Discovered new exit (range 7) 9015 | -6/Lower Caves | Learned Factory stockpile data 9041 | -6/Lower Caves | Build established: Mutant 9042 | -6/Lower Caves | Encountered a Warlord checkpoint 9109 | -6/Lower Caves | Found DCF Scrap (13 items) 9122 | -6/Lower Caves | Identified exit to Factory 9242 | -6/Lower Caves | Entered Factory 9242 | -5/Factory | Evolved 2 slots: Utility x2 9243 | -5/Factory | Loaded intel: 112 trap records 9279 | -5/Factory | Loaded intel: 8 recycling unit locations 9555 | -5/Factory | Build established: Hacker-Mutant 9649 | -5/Factory | Identified exit to Factory 9687 | -5/Factory | Garrison activated, responded to threat 9715 | -5/Factory | P-80 Master assimilated allied Carver 6a 9799 | -5/Factory | Identified exit to Upper Caves 9799 | -5/Factory | Identified exit to Extension 10026 | -5/Factory | Build established: Hacker-Skirmisher 10317 | -5/Factory | Entered Extension 10660 | -5/Extension | Lost 3 parts (1p1u1w) 10694 | -5/Extension | Build established: Hacker-Mutant 10809 | -5/Extension | Rescued a captive Derelict 10810 | -5/Extension | Rescued a captive Derelict 10913 | -5/Extension | Rescued a captive Derelict 10914 | -5/Extension | Rescued a captive Derelict 11115 | -5/Extension | Disrupted transfer network 11197 | -5/Extension | Spotted B-75 Beast 11207 | -5/Extension | Destroyed B-75 Beast 11255 | -5/Extension | Spotted B-75 Beast 11256 | -5/Extension | Lost 6 allies 11281 | -5/Extension | Destroyed B-75 Beast 11306 | -5/Extension | Core integrity fell below 50% 11343 | -5/Extension | Lost 21 parts (1p4n9u7w) 11460 | -5/Extension | Core integrity fell below 20% 11493 | -5/Extension | Lost 7 parts (1p4u2w) 11554 | -5/Extension | Rescued a captive Derelict 11555 | -5/Extension | Rescued a captive Derelict 11578 | -5/Extension | Rescued a captive Derelict 11598 | -5/Extension | Rescued a captive Derelict 11717 | -5/Extension | Lost 4 allies 11784 | -5/Extension | Energy Cycler disabled 11792 | -5/Extension | Rescued a captive Derelict 11801 | -5/Extension | Rescued A7 11865 | -5/Extension | Discovered exit to Factory (range 10) 11866 | -5/Extension | Discovered new exit (range 6) 11869 | -5/Extension | Identified exit to Cetus 11871 | -5/Extension | Entered Cetus 11871 | -5/Cetus | Accompanied by 1 ally (A7) 11876 | -5/Cetus | Acquired a Cetus Manufacturing Module code from A7 11882 | -5/Cetus | Spotted Cetus Guard 11882 | -5/Cetus | Spotted Cetus Guard 11883 | -5/Cetus | Spotted Cetus Guard 11894 | -5/Cetus | Allies destroyed Cetus Guard 11894 | -5/Cetus | Spotted Cetus Guard 11901 | -5/Cetus | Allies destroyed Cetus Guard 11911 | -5/Cetus | Allies destroyed Cetus Guard 11926 | -5/Cetus | Allies destroyed Cetus Guard 11973 | -5/Cetus | Started Cetus Manufacturing Module 11998 | -5/Cetus | Manufactured an Enhanced Grunt 12023 | -5/Cetus | Manufactured an Enhanced Grunt 12048 | -5/Cetus | Manufactured an Enhanced Grunt 12073 | -5/Cetus | Manufactured an Enhanced Grunt 12098 | -5/Cetus | Manufactured an Enhanced Grunt 12112 | -5/Cetus | Escorted A7 to Cetus Mainframe 12122 | -5/Cetus | Discovered new exit (range 21) 12160 | -5/Cetus | Identified exit to Archives 12199 | -5/Cetus | Spotted Cetus Guard 12199 | -5/Cetus | Spotted Cetus Guard 12199 | -5/Cetus | Spotted Cetus Guard 12206 | -5/Cetus | Spotted Cetus Guard 12207 | -5/Cetus | Allies destroyed Cetus Guard 12210 | -5/Cetus | Discovered exit to Factory (range 21) 12218 | -5/Cetus | Allies destroyed Cetus Guard 12218 | -5/Cetus | Destroyed Cetus Guard 12222 | -5/Cetus | Allies destroyed Cetus Guard 12230 | -5/Cetus | Build established: Scavenger-Tank 12230 | -5/Cetus | Met Revision 17 12362 | -5/Cetus | Entered Archives 12362 | -5/Archives | Accompanied by 6 allies (A7) 12367 | -5/Archives | Received a hacking code to weaken MAIN.C 12405 | -5/Archives | Discovered new exit (range 22) 12593 | -5/Archives | Discovered new exit (range 22) 12599 | -5/Archives | Discovered exit to Factory (range 19) 12603 | -5/Archives | Unable to access archive contents 12609 | -5/Archives | Unable to access archive contents 12620 | -5/Archives | Unable to access archive contents 12686 | -5/Archives | Identified exit to Hub_04(d) 12838 | -5/Archives | Entered Factory 12838 | -4/Factory | Accompanied by 5 allies 12838 | -4/Factory | Evolved 2 slots: Power x1, Propulsion x1 12919 | -4/Factory | Identified exit to Research 12983 | -4/Factory | Repaired Cmb. Airjet 12998 | -4/Factory | Fabricated Enh. Hardcell Cannon? 13130 | -4/Factory | Discovered new exit (range 22) 13164 | -4/Factory | Identified exit to Upper Caves 13182 | -4/Factory | Loaded intel: 8 recycling unit locations 13430 | -4/Factory | Local machine network offline 13460 | -4/Factory | Spotted B-86 Titan 13495 | -4/Factory | Lost 3 parts (1p1u1w) 13559 | -4/Factory | System corruption reached 10% 13586 | -4/Factory | Lost 6 parts (1p1n2u2w) 13588 | -4/Factory | First assault squad dispatched 13689 | -4/Factory | Entered Upper Caves 13715 | -4/Upper Caves | Lost 3 parts (1n2u) 13718 | -4/Upper Caves | P-70 Sage assimilated allied X5-F2T(S) 13767 | -4/Upper Caves | Build established: Scavenger-Mutant 13864 | -4/Upper Caves | Learned Research stockpile data 13880 | -4/Upper Caves | Learned Research garrison access intel 14077 | -4/Upper Caves | Spotted B-86 Titan 14083 | -4/Upper Caves | Build established: Hacker-Mutant 14512 | -4/Upper Caves | Attracted the attention of an 0b10 checkpoint 14538 | -4/Upper Caves | Learned 4 Research zone layouts 14704 | -4/Upper Caves | Destroyed B-86 Titan 14717 | -4/Upper Caves | Lost 3 parts (1n2w) 15116 | -4/Upper Caves | Discovered new exit (range 7) 15131 | -4/Upper Caves | Identified exit to Upper Caves 15228 | -4/Upper Caves | Entered another Upper Caves area 15337 | -4/Upper Caves | Discovered exit to Research (range 14) 15482 | -4/Upper Caves | Attracted the attention of an 0b10 checkpoint 15707 | -4/Upper Caves | Lost 11 parts (1p4n3u3w) 15803 | -4/Upper Caves | Learned location of 1 exit from Research 15815 | -4/Upper Caves | Attracted the attention of an 0b10 outpost 15856 | -4/Upper Caves | Core integrity fell below 50% 15888 | -4/Upper Caves | Found DCF Scrap (12 items) 16052 | -4/Upper Caves | Build established: Derelict-Mutant 16264 | -4/Upper Caves | Discovered new exit (range 12) 16274 | -4/Upper Caves | Identified exit to Zhirov 16396 | -4/Upper Caves | Entered Zhirov 16397 | -4/Zhirov | Discovered new exit (range 3) 16415 | -4/Zhirov | Met Zhirov 16438 | -4/Zhirov | Learned location of Quarantine (-2) 16438 | -4/Zhirov | Learned location of Testing (-3) 16438 | -4/Zhirov | Learned location of Command (-1) 16444 | -4/Zhirov | Zhirov requested help retrieving the SGEMP Prototype 16461 | -4/Zhirov | Found Alien Artifact 16461 | -4/Zhirov | Identified Integrated Reactor 16461 | -4/Zhirov | Installed Integrated Reactor, increased core energy generation (+10) 16635 | -4/Zhirov | Found Alien Artifact 16680 | -4/Zhirov | Identified exit to Proximity Caves 16681 | -4/Zhirov | Entered Proximity Caves 16925 | -3/Proximity Caves | Spotter reported a threat 17114 | -3/Proximity Caves | Discovered exit to Research (range 10) 17127 | -3/Proximity Caves | Entered Research 17127 | -3/Research | Evolved 2 slots: Utility x1, Weapon x1 17128 | -3/Research | Identified exit to Research 17131 | -3/Research | Loaded intel: 4 garrison access locations 17192 | -3/Research | Repaired Lyr. Heavy Armor Plating 17285 | -3/Research | Spotted B-86 Titan 17327 | -3/Research | Revision forces began assault on 0b10 17342 | -3/Research | Met up with Revision 17++ 17721 | -3/Research | Build established: Scavenger-Tank 17771 | -3/Research | Identified exit to Armory 17771 | -3/Research | Identified exit to Testing 17827 | -3/Research | Research terminal network offline 17901 | -3/Research | Spotted Striker 17942 | -3/Research | Lost 3 allies 18091 | -3/Research | Loaded intel: 5 recycling unit locations 18179 | -3/Research | Spotted Striker 18179 | -3/Research | Spotted Striker 18183 | -3/Research | Destroyed Striker 18193 | -3/Research | Scrapoid reinforcements arrived 18195 | -3/Research | Allies destroyed Striker 18244 | -3/Research | Entered Testing 18244 | -3/Testing | Accompanied by 3 allies 18444 | -3/Testing | Found Prototype Energy Cannon 18444 | -3/Testing | Identified Hpw. Disruptor Cannon 18533 | -3/Testing | Found Prototype Energy Gun 18533 | -3/Testing | Identified Hyp. EM Gauss Rifle 18548 | -3/Testing | Spotted PY-4IY0GRCIF7 18559 | -3/Testing | Destroyed PY-4IY0GRCIF7 18899 | -3/Testing | Found Prototype Launcher 18899 | -3/Testing | Identified Tactical Quantum Warhead 18951 | -3/Testing | Found Prototype Processor 18951 | -3/Testing | Identified Spectral Analyzer 19057 | -3/Testing | Found Prototype Device 19057 | -3/Testing | Identified Exp. Focal Shield 19120 | -3/Testing | Discovered exit to Research (range 12) 19160 | -3/Testing | Entered Research 19160 | -2/Research | Evolved 2 slots: Propulsion x1, Utility x1 19214 | -2/Research | Fabricated Rnf. Quantum Reactor? 19606 | -2/Research | Garrison activated, responded to threat 19701 | -2/Research | Destroyed 8 combat bots 19702 | -2/Research | Lost 7 parts (4n1u2w) 19778 | -2/Research | Cargo convoy interrupted 19778 | -2/Research | Spotted Executioner 19778 | -2/Research | Spotted Executioner 19779 | -2/Research | Identified Transdimensional Reconstructor 19779 | -2/Research | Warped through subspace 19794 | -2/Research | Identified exit to Quarantine 19827 | -2/Research | Core integrity fell below 50% 19830 | -2/Research | System corruption reached 10% 19831 | -2/Research | Lost 13 parts (1p4n5u3w) 19889 | -2/Research | Core integrity fell below 20% 19890 | -2/Research | Spotted B-90 Cyclops 19898 | -2/Research | Destroyed by B-90 Cyclops with Nova Cannon Last Messages --------------- 19890_ Centrium Light Armor Plating destroyed. 19890_ Imp. Arc Projector destroyed. 19891_ Hvy. Siege Treads destroyed. 19892_ K-01 Serf collects debris. 19894_ Hvy. Siege Treads destroyed. 19895_ Rnf. Quantum Reactor blown off. 19895_ Graphene Brace blown off. 19895_ E-15 Imp destroyed. 19895_ Com. Linear Accelerator destroyed. 19895_ Dropped Lrg. Storage Unit. 19895_ P-80 Master resets Executioner, system corruption cleaned. 19895_ Slug penetrates Wall. 19895_ Penetrated by Slug. 19895_ Acquired Xenon Bombardment Thruster. 19896_ P-80 Master resets P-80 Master, system corruption cleaned. 19897_ Xenon Bombardment Thruster destroyed. 19897_ P-80 Master resets X-87 Electro, system corruption cleaned. Map ----- +----------------------------------------------------+ | ?????????????????????????????????????????????????? | | ?????????????????????????????????????????????????? | | ?????????????????????????????????????????????????? | | ?????????????????????????????????????????????????? | | ?????????????????????????????????????????????????? | | ?????????????????????????????????????????????????? | | ?????????????????????????????????????????????????? | | ?????????????????????????????????????????????????? | | ?????????????????????????????????????????????????? | | ?????????????????????????????????????????????????? | | ?????????????????????????????????????????????????? | | ??????????????????????????? ???????????????????? | | ?????????????????????????? ????????????????? | | ??????????????????????##?? ??????????????? | | ?????????????????????? ?? ?????????????? | | ?????????????????????? ? ??????????????? | | ?????????????????????? ? ???????????????? | | ??????????????????????" ? ]**#???????????????? | | ??????????????????????? ]? ]**###?????????????? | | ??????????????????????? # ]*BB #?????????????? | | ??????????????????????? + BB #?????????????? | | ???????????????????????? # ;#??????????????? | | ???????????????????????? # #???????????????? | | ??????????????????#######; #####???????????? | | ??????????????????# w #???????????? | | ??????????????????# % @ #???????????? | | ??????????????????# !* s #???????????? | | ??????????????????# A s ! [ s #???????????? | | ?????????????? ???# #;s%;######+#+#???????????? | | ???????????? ??# # !%[ #??????????????????? | | ???????????!! ### # #??????????????????? | | ???????????!! # xhE #??????????????????? | | ??????????? t #pp #??????????????????? | | ??????????? x%pE #??????????????????? | | ??????????? %;pp #??????????????????? | | ????????????""##### # p !#??????????????????? | | ??????????????????# " #h #??????????????????? | | ??????????????????#"% # #??????????????????? | | ????????# "T?????# # % #??????????????????? | | ????????# ??# # #??????????????????? | | ????????+ # / % #??????????????????? | | ???????????? """ + # #??????????????????? | | ???????????? """ # # #??????????????????? | | ?????????????""???# ########??????????????????? | | ??????????????????# #?############????????????? | | ??????????????????# #? #????????????? | | ??????????????????# # ! #????????????? | | ??????????????????# # #????????????? | | ??????????????????# + #????????????? | | ??????????????????# # #????????????? | +----------------------------------------------------+ Best States ------------- Heat Dissipation 125 Coolant Potential 120 Energy Generation 53 Energy Capacity 590 Matter Stores 300 Matter Capacity 300 Sight Range 22 Robot Scan Range 16 Terrain Scan Density 10 Additional Mass Support 20 Base Temperature (-) 200 Corruption Containment 12 Armor Coverage 2225 Resistance: KI 30 Utility Shielding 66 Evasion (%) 75 Targeting Accuracy 8 Launcher Accuracy 30 Target Analysis 8 Armor Integrity Analysis 40 Recoil Reduction 4 Particle Charging 30 Offensive Hacking 35 Defensive Hacking 14 Item Schematics ----------------- Arm. Wheel | -8/Recycling | Hacked Imp. Antigrav System | -5/Extension | Hacked Matter Neutralizer | -5/Extension | Hacked Assault Drone Bay | -4/Zhirov | Free Exp. Heat Sink | -4/Zhirov | Free Exp. Optical Array | -4/Zhirov | Free Imp. Arc Thrower | -4/Zhirov | Free Hvy. Neutron Cannon | -3/Research | Scanalyzed Plasma Sword | -3/Testing | Archive Adv. Gravity Neutralizer | -3/Testing | Archive Exp. Flexi-carbon Leg | -3/Testing | Archive Gravity Neutralizer | -3/Testing | Archive Diametric Drive | -3/Testing | Archive Cld. Impulse Thruster | -3/Testing | Archive Exp. Thermal Shield | -3/Testing | Archive Cld. Nuclear Pulse Thruster | -3/Testing | Archive Lgt. Antimatter Cannon | -3/Testing | Archive Robot Schematics ------------------ None Fabricated ------------ Enh. Hardcell Cannon | x2 | -4/Factory | Preloaded Rnf. Quantum Reactor | x2 | -2/Research | Preloaded Repaired ---------- Cmb. Airjet | 36% | -4/Factory Lyr. Heavy Armor Plating | 48% | -3/Research Studied --------- Gatling Laser | -6/Factory | Hacked Gravmag System | -6/Factory | Hacked Lrn. Missile Launcher | -6/Factory | Hacked Flexi-carbon Leg | -3/Research | Hacked Myomer Leg | -3/Research | Hacked Plasma Rifle | -3/Research | Hacked Hvy. Plasma Cannon | -3/Research | Hacked Alien Tech Used ----------------- Integrated Reactor Transdimensional Reconstructor Achievements -------------- Betrayal Most Foul Explosive Keycard Revolutionary Research Challenges ------------ None Game ------ Seed ArmoredMatterCompressor Manual? 0 Play Time 04:32:56 Cumulative 158.6 hours Start 2025.12.05 @ 15:30:52 End 2025.12.05 @ 23:23:52 Sessions 3 Manual Loads 0 Difficulty Rogue Special Mode None Game No. 85 Rogue 85 Adventurer 0 Explorer 0 Win Type - Total 1 Types 1/0/0/0/0/0/0/0/0/0 Lore% 68 Gallery% 62 Achievement% 51 Wizard Run 0 Options --------- Layout 1 ASCII 0 Keyboard 0 Movement Mouse Keybinds 0 Fullscreen 2 Font 32/SmallcapsGlow Map View 50x35 Zoom Use 0% Tactical HUD 1 Map Filters NONE Filters NONE Steam 1 RUN: 23aff417-a82b-4e9f-8a1a-ea36ac5ca55d